[Event "1000GM Spring Break Schev-E 2024"]
[Site "San Jose"]
[Date "2024.04.07"]
[Round "4.2"]
[White "Jimenez Garcia, Emmanuel"]
[Black "Liu, Patrick"]
[Result "1-0"]
[ECO "C00"]
[WhiteElo "2421"]
[BlackElo "2113"]
[Annotator "TA"]
[PlyCount "75"]
[EventDate "2024.03.28"]
[EventType "schev"]
[EventCountry "USA"]
[SourceTitle "playchess.com"]
[Source "ChessBase"]
[SourceQuality "1"]
[TimeControl "5400+30"]

{[%evp 11,75,-11,-1,-29,-31,-33,-18,-8,-2,-16,0,-12,0,0,22,18,118,111,111,115,109,91,98,95,110,106,98,89,178,167,198,202,202,187,266,181,280,253,341,348,335,343,318,322,734,751,1163,1101,1171,1136,1058,1035,1029,846,2402,2890,3119,3016,29987,29982,29980,29981,29986,29987,29989,29990]} 1. e4 {[%emt 0:00:08]} c5 {[%emt 0:02:54]} 2. Nf3 {[%emt 0:00:14]} e6 {[%emt 0:00:07]} 3. d3 {[%emt 0:00:19]} d5 {[%emt 0:02:06]} 4. Qe2 {[%emt 0:00:09]} Be7 {[%emt 0:00:59]} 5. g3 {[%emt 0:00:36]} Nf6 {[%emt 0:01:04]} 6. Bg2 {[%emt 0:00:45]} Nc6 {[%emt 0:00:42]} 7. e5 {[%emt 0:03:22]} Nd7 {[%emt 0:00:39]} 8. c4 {[%emt 0:00:39]} d4 {[%emt 0:09:13]} 9. h4 {[%emt 0:02:19] The position is equal.} a6 {[%emt 0:05:38]} 10. Bf4 {[%emt 0:02:40]} Rb8 {[%emt 0:01:05]} 11. Nbd2 {[%emt 0:03:29][%cal Bb1d2,Bd2e4,Be4c5][%mdl 32]} Qc7 {[%emt 0:01:21]} 12. O-O {[%emt 0:01:49]} O-O {[%emt 0:01:38]} 13. Ne4 {[%emt 0:03:01][%cal Oe4f6]} Ndxe5 {[%emt 0:08:43]} (13... Qd8 $11) 14. Nxe5 $16 {[%emt 0:04:39]} Nxe5 {[%emt 0:00:08] [#]} 15. Nxc5 $1 {[%emt 0:03:29][%mdl 512]} Qxc5 {[%emt 0:00:30]} (15... Bxc5 16. Bxe5) 16. Qxe5 {[%emt 0:02:51]} ({But not} 16. Bxe5 Bd6 17. Bxd6 Qxd6 $11) 16... Ra8 {[%emt 0:00:16]} 17. a3 {[%emt 0:03:50][%cal Ba2a3,Ba3b4,Bb4b5,Bb5b6][%mdl 32] White is more active.} a5 {[%emt 0:01:12]} 18. Qxc5 {[%emt 0:02:39]} Bxc5 {[%emt 0:00:02]} 19. Bd2 {[%emt 0:00:09]} a4 {[%emt 0:10:15]} (19... Bd6 $16) 20. Bb4 $18 {[%emt 0:00:08]} Bxb4 {[%emt 0:00:07]} 21. axb4 {[%emt 0:00:02]} e5 {[%emt 0:02:24]} 22. b5 {[%emt 0:03:08]} Bf5 {[%emt 0:08:28]} (22... g6 $142 23. Ra3 Re8) 23. Ra3 {[%emt 0:04:10]} Ra7 {[%emt 0:05:03]} (23... Rab8 $142 24. Rd1 (24. Rxa4 Bxd3 25. Rc1 Rfd8 $15) 24... h6 25. Rxa4 b6) 24. Re1 {[%emt 0:01:07]} f6 {[%emt 0:04:12]} 25. b6 {[%emt 0:01:12]} Ra6 {[%emt 0:03:37]} 26. c5 {[%emt 0:00:36]} ({Stronger than} 26. Bxb7 Rxb6 27. Bd5+ Kh8 $11) 26... Rb8 {[%emt 0:02:35]} 27. f4 {[%emt 0:09:29]} exf4 $2 {[%emt 0:02:55] [#]} (27... e4 28. dxe4 Be6) 28. Re7 {[%emt 0:04:57]} fxg3 {[%emt 0:12:49]} 29. Bd5+ {[%emt 0:00:17]} Kh8 {[%emt 0:00:31]} 30. Rxb7 {[%emt 0:02:01]} Re8 {[%emt 0:02:21]} 31. Ra7 {[%emt 0:00:16]} Bh3 {[%emt 0:01:40]} 32. Ra1 {[%emt 0:00:24]} (32. Rxa6 $2 Re1#) 32... Bc8 {[%emt 0:00:34]} 33. Rxa6 {[%emt 0:00:32]} Bxa6 {[%emt 0:00:03]} 34. Rxa4 {[%emt 0:00:22]} Bxd3 {[%emt 0:00:43]} 35. Ra8 {[%emt 0:01:05] White mates.} Rxa8 {[%emt 0:00:49]} 36. Bxa8 {[%emt 0:00:03]} Ba6 {[%emt 0:00:29]} 37. c6 {[%emt 0:00:12]} d3 {[%emt 0:00:11]} 38. b7 {[%emt 0:00:16] Weighted Error Value: White=0.08 (flawless) /Black=0.60.  Mistake:       	---       	Black=5      Inaccurate:     	White=1     	Black=2      OK:         	White=11    	Black=5      Best:        	White=2     	---        Brilliant:      	White=1     	---} 1-0

[Event "1000GM Spring Break Schev-E 2024"]
[Site "San Jose"]
[Date "2024.04.07"]
[Round "4.3"]
[White "Deng, Henry"]
[Black "Arenas, David"]
[Result "1/2-1/2"]
[ECO "C50"]
[WhiteElo "2305"]
[BlackElo "2366"]
[Annotator "RC"]
[PlyCount "48"]
[EventDate "2024.03.28"]
[EventType "schev"]
[EventCountry "USA"]
[SourceTitle "playchess.com"]
[Source "ChessBase"]
[SourceQuality "1"]
[TimeControl "5400+30"]

1. e4 {[%emt 1:31:00]} e5 {[%emt 0:01:24]} 2. Nf3 {[%emt 0:00:00]} Nc6 {[%emt 0:00:05]} 3. Bc4 {[%emt 0:00:00]} Bc5 {[%emt 0:00:06]} 4. Nc3 {[%emt 0:00:00]} Nf6 {[%emt 0:00:05]} 5. d3 {[%emt 0:00:00]} d6 {[%emt 0:00:03]} 6. Na4 {[%emt 0:00:00]} Bb6 {[%emt 0:00:05]} 7. a3 {[%emt 0:00:00]} h6 {[%emt 0:00:08]} 8. h3 {[%emt 0:00:00]} Ne7 {[%emt 0:00:16]} 9. Nxb6 {[%emt 0:00:00]} axb6 {[%emt 0:00:04]} 10. O-O {[%emt 0:00:00]} O-O {[%emt 0:00:03]} 11. Re1 {[%emt 0:00:00]} Ng6 {[%emt 0:00:18]} 12. c3 {[%emt 0:00:00]} Re8 {[%emt 0:00:12]} 13. b4 {[%emt 0:00:00]} c6 {[%emt 0:04:51]} 14. Bb3 {[%emt 0:00:00]} d5 {[%emt 0:00:16]} 15. Bb2 {[%emt 0:00:00]} b5 {[%emt 0:06:59]} 16. Qc2 {[%emt 0:00:00]} Be6 {[%emt 0:04:22]} 17. Rad1 {[%emt 0:00:00]} Qc8 {[%emt 0:01:40]} 18. Kh2 {[%emt 0:00:00]} dxe4 {[%emt 0:00:20]} 19. dxe4 {[%emt 0:00:00]} Bxb3 {[%emt 0:00:17]} 20. Qxb3 {[%emt 0:00:00]} Qe6 {[%emt 0:00:05]} 21. Qxe6 {[%emt 0:00:00]} Rxe6 {[%emt 0:00:02]} 22. g3 {[%emt 0:00:00]} Re7 {[%emt 0:01:12]} 23. Rc1 {[%emt 0:00:00]} Rd8 {[%emt 0:01:16]} 24. Re3 {[%emt 0:00:00]} Rd6 {[%emt 0:04:09]} 1/2-1/2

[Event "1000GM Spring Break Schev-E 2024"]
[Site "San Jose"]
[Date "2024.04.07"]
[Round "4.4"]
[White "Tang, Dylan"]
[Black "Zuluaga Mancilla, Cesar"]
[Result "1/2-1/2"]
[ECO "B41"]
[WhiteElo "2217"]
[BlackElo "2206"]
[Annotator "RC"]
[PlyCount "113"]
[EventDate "2024.03.28"]
[EventType "schev"]
[EventCountry "USA"]
[SourceTitle "playchess.com"]
[Source "ChessBase"]
[SourceQuality "1"]
[TimeControl "5400+30"]

1. e4 {[%emt 0:05:17]} c5 {[%emt 0:02:27]} 2. Nf3 {[%emt 0:00:06]} e6 {[%emt 0:00:04]} 3. d4 {[%emt 0:00:04]} cxd4 {[%emt 0:00:01]} 4. Nxd4 {[%emt 0:00:07]} a6 {[%emt 0:00:06]} 5. c4 {[%emt 0:00:03]} Nf6 {[%emt 0:00:06]} 6. Nc3 {[%emt 0:00:04]} Bb4 {[%emt 0:00:04]} 7. Qf3 {[%emt 0:01:30]} d5 {[%emt 0:03:29]} 8. e5 {[%emt 0:22:04]} Ne4 {[%emt 0:00:58]} 9. Be2 {[%emt 0:13:18]} f5 {[%emt 0:11:31]} 10. O-O {[%emt 0:02:21]} Nc6 {[%emt 0:07:12]} 11. Nxc6 {[%emt 0:01:22]} bxc6 {[%emt 0:00:01]} 12. Nxe4 {[%emt 0:04:50]} fxe4 {[%emt 0:00:54]} 13. Qf4 {[%emt 0:00:37]} Rf8 {[%emt 0:01:45]} 14. Qg4 {[%emt 0:01:12]} Kf7 {[%emt 0:00:59]} 15. f3 {[%emt 0:03:07]} Bc5+ {[%emt 0:00:41]} 16. Kh1 {[%emt 0:00:44]} Kg8 {[%emt 0:01:18]} 17. Bh6 {[%emt 0:05:23]} Ra7 {[%emt 0:01:12]} 18. fxe4 {[%emt 0:00:49]} d4 {[%emt 0:00:29]} 19. a3 {[%emt 0:07:40]} a5 {[%emt 0:08:14]} 20. b4 {[%emt 0:00:49]} axb4 {[%emt 0:03:16]} 21. axb4 {[%emt 0:00:11]} Rxf1+ {[%emt 0:00:08]} 22. Bxf1 {[%emt 0:00:15]} Qf8 {[%emt 0:00:14]} 23. Rd1 {[%emt 0:04:44]} Bxb4 {[%emt 0:03:29]} 24. Bf4 {[%emt 0:01:06]} c5 {[%emt 0:02:28]} 25. h4 {[%emt 0:00:56]} Rf7 {[%emt 0:07:16]} 26. g3 {[%emt 0:00:40]} Qe8 {[%emt 0:02:16]} 27. Bh3 {[%emt 0:01:36]} Qc6 {[%emt 0:00:22]} 28. Bg5 {[%emt 0:01:31]} Bb7 {[%emt 0:01:53]} 29. Kg1 {[%emt 0:00:42]} Bc8 {[%emt 0:05:19]} 30. h5 {[%emt 0:01:07]} Qa6 {[%emt 0:02:09]} 31. Rf1 {[%emt 0:02:42]} Rxf1+ {[%emt 0:10:03]} 32. Bxf1 {[%emt 0:00:18]} Qb7 {[%emt 0:01:09]} 33. h6 {[%emt 0:01:21]} g6 {[%emt 0:00:10]} 34. Qf4 {[%emt 0:01:39]} Qf7 {[%emt 0:00:20]} 35. Kf2 {[%emt 0:00:54]} Qxf4+ {[%emt 0:01:43]} 36. gxf4 {[%emt 0:00:10]} Kf7 {[%emt 0:02:17]} 37. Bd3 {[%emt 0:01:02]} Bd2 {[%emt 0:00:37]} 38. Kf3 {[%emt 0:01:24]} Ke8 {[%emt 0:02:25]} 39. Ke2 {[%emt 0:01:47]} Ba5 {[%emt 0:01:04]} 40. Kd1 {[%emt 0:01:22]} Bd7 {[%emt 0:00:17]} 41. Bc2 {[%emt 0:01:07]} Kf7 {[%emt 0:00:32]} 42. Ke2 {[%emt 0:00:23]} Bc3 {[%emt 0:00:06]} 43. Kd1 {[%emt 0:01:05]} Bc8 {[%emt 0:00:58]} 44. Bd3 {[%emt 0:00:20]} Ba5 {[%emt 0:01:05]} 45. Kc2 {[%emt 0:01:47]} Be1 {[%emt 0:00:09]} 46. Kb3 {[%emt 0:01:24]} Bd2 {[%emt 0:00:12]} 47. Bc2 {[%emt 0:00:33]} Bd7 {[%emt 0:01:08]} 48. Bd3 {[%emt 0:00:07]} Be3 {[%emt 0:00:20]} 49. Bc2 {[%emt 0:00:11]} Bc6 {[%emt 0:00:14]} 50. Bd3 {[%emt 0:00:27]} Ke8 {[%emt 0:00:36]} 51. Bc2 {[%emt 0:00:14]} Kd7 {[%emt 0:00:07]} 52. Bd3 {[%emt 0:00:04]} Kc8 {[%emt 0:00:06]} 53. Bc2 {[%emt 0:00:12]} Bd7 {[%emt 0:21:01]} 54. Bd3 {[%emt 0:00:15]} Kb7 {[%emt 0:00:00]} 55. Bc2 {[%emt 0:00:06]} Bd2 {[%emt 0:00:00]} 56. Bd3 {[%emt 0:00:09]} Ka6 {[%emt 0:00:00]} 57. Bc2 {[%emt 0:00:06]} 1/2-1/2

[Event "1000GM Spring Break Schev-E 2024"]
[Site "San Jose"]
[Date "2024.04.07"]
[Round "4.5"]
[White "Figueredo Losada, Leonel"]
[Black "Atwell, Rose"]
[Result "1-0"]
[ECO "D14"]
[WhiteElo "2323"]
[BlackElo "2279"]
[Annotator "RC"]
[PlyCount "85"]
[EventDate "2024.03.28"]
[EventType "schev"]
[EventCountry "USA"]
[SourceTitle "playchess.com"]
[Source "ChessBase"]
[SourceQuality "1"]
[TimeControl "5400+30"]

1. d4 {[%emt 0:00:40]} d5 {[%emt 0:00:05]} 2. c4 {[%emt 0:00:26]} c6 {[%emt 0:00:05]} 3. Nc3 {[%emt 0:01:10]} Nf6 {[%emt 0:00:06]} 4. cxd5 {[%emt 0:00:04]} cxd5 {[%emt 0:00:04]} 5. Bf4 {[%emt 0:00:12]} Nc6 {[%emt 0:00:28]} 6. e3 {[%emt 0:00:24]} Bf5 {[%emt 0:07:53]} 7. Qb3 {[%emt 0:00:27]} Na5 {[%emt 0:03:13]} 8. Qa4+ {[%emt 0:00:09]} Bd7 {[%emt 0:00:42]} 9. Qc2 {[%emt 0:00:05]} Rc8 {[%emt 0:04:21]} 10. Nf3 {[%emt 0:00:20]} e6 {[%emt 0:01:05]} 11. Bd3 {[%emt 0:00:22]} b5 {[%emt 0:08:05]} 12. a3 {[%emt 0:00:18]} Nc4 {[%emt 0:02:30]} 13. O-O {[%emt 0:04:31]} a5 {[%emt 0:03:31]} 14. Qe2 {[%emt 0:01:22]} Be7 {[%emt 0:02:38]} 15. Ne5 {[%emt 0:01:25]} O-O {[%emt 0:04:56]} 16. a4 {[%emt 0:27:53]} b4 {[%emt 0:03:14]} 17. Nxd7 {[%emt 0:02:56]} Qxd7 {[%emt 0:03:32]} 18. Nb5 {[%emt 0:00:18]} Rc6 {[%emt 0:09:52]} 19. b3 {[%emt 0:18:18]} Nb6 {[%emt 0:00:10]} 20. Rac1 {[%emt 0:00:57]} Rfc8 {[%emt 0:03:29]} 21. Rxc6 {[%emt 0:00:57]} Rxc6 {[%emt 0:00:02]} 22. Qf3 {[%emt 0:03:31]} Qb7 {[%emt 0:07:44]} 23. g4 {[%emt 0:04:11]} Rc8 {[%emt 0:02:35]} 24. Qh3 {[%emt 0:00:16]} g6 {[%emt 0:03:21]} 25. f3 {[%emt 0:00:05]} Nbd7 {[%emt 0:03:17]} 26. Qg2 {[%emt 0:01:36]} Qb6 {[%emt 0:01:51]} 27. Qd2 {[%emt 0:01:34]} Ne8 {[%emt 0:02:39]} 28. Rc1 {[%emt 0:00:14]} Rd8 {[%emt 0:01:37]} 29. Bg3 {[%emt 0:04:20]} f6 {[%emt 0:07:27]} 30. Qc2 {[%emt 0:00:45]} e5 {[%emt 0:00:12]} 31. Qc6 {[%emt 0:00:08]} Qxc6 {[%emt 0:00:57]} 32. Rxc6 {[%emt 0:00:04]} Nb8 {[%emt 0:01:10]} 33. Rb6 {[%emt 0:02:12]} Kf7 {[%emt 0:01:10]} 34. Kf1 {[%emt 0:03:06]} Rc8 {[%emt 0:01:45]} 35. Ke2 {[%emt 0:02:25]} Nd7 {[%emt 0:04:09]} 36. Rb7 {[%emt 0:00:35]} Ke6 {[%emt 0:00:14]} 37. e4 {[%emt 0:00:47]} Rd8 {[%emt 0:01:47]} 38. exd5+ {[%emt 0:04:03]} Kxd5 {[%emt 0:00:38]} 39. Be4+ {[%emt 0:00:04]} Ke6 {[%emt 0:00:06]} 40. Bc6 {[%emt 0:00:14]} Bd6 {[%emt 0:03:06]} 41. d5+ {[%emt 0:00:54]} Ke7 {[%emt 0:00:06]} 42. Bf2 {[%emt 0:00:06]} f5 {[%emt 0:01:18]} 43. Bb6 {[%emt 0:01:24]} 1-0

[Event "1000GM Spring Break Schev-E 2024"]
[Site "San Jose"]
[Date "2024.04.07"]
[Round "5.1"]
[White "Guo, Ethan"]
[Black "Jimenez Garcia, Emmanuel"]
[Result "0-1"]
[ECO "C41"]
[WhiteElo "2211"]
[BlackElo "2421"]
[Annotator "TA"]
[PlyCount "65"]
[EventDate "2024.03.28"]
[EventType "schev"]
[EventCountry "USA"]
[SourceTitle "playchess.com"]
[Source "ChessBase"]
[SourceQuality "1"]
[TimeControl "5400+30"]

{[%evp 19,65,24,27,22,22,25,6,0,0,0,0,-14,-18,-25,-27,-26,-21,-49,-50,-38,-20,-30,-9,-11,0,-12,6,-32,-25,-31,-31,-40,-35,-55,-47,-50,-52,-49,-56,-52,-51,-69,-39,-29,-8,0,-2,-36]} 1. e4 {[%emt 1:31:00]} d6 {[%emt 0:00:17]} 2. d4 {[%emt 0:00:00]} Nf6 {[%emt 0:00:04]} 3. Nc3 {[%emt 0:00:00]} e5 {[%emt 0:00:05]} 4. Nf3 {[%emt 0:00:00]} Nbd7 {[%emt 0:00:06]} 5. Bc4 {[%emt 0:00:00]} Be7 {[%emt 0:00:04]} 6. O-O {[%emt 0:00:00]} O-O {[%emt 0:00:06]} 7. a4 {[%emt 0:00:00]} c6 {[%emt 0:00:09]} 8. Ba2 {[%emt 0:00:00]} a5 {[%emt 0:01:53]} 9. Re1 {[%emt 0:00:00]} exd4 {[%emt 0:02:35]} 10. Nxd4 {[%emt 0:00:00]} Nc5 {[%emt 0:06:05]} 11. Bf4 {[%emt 0:00:00]} Ne6 {[%emt 0:10:40]} 12. Nxe6 {[%emt 0:00:00]} Bxe6 {[%emt 0:00:03]} 13. Bg3 {[%emt 0:00:00]} Bxa2 {[%emt 0:04:16]} 14. Rxa2 {[%emt 0:00:00]} Re8 {[%emt 0:00:30]} 15. Ra1 {[%emt 0:00:00]} Qb6 {[%emt 0:07:26]} 16. b3 {[%emt 0:00:00]} Qc5 {[%emt 0:02:03]} 17. Qd3 {[%emt 0:00:00]} Nh5 {[%emt 0:03:57]} 18. Rad1 {[%emt 0:00:00]} Nxg3 {[%emt 0:00:54]} 19. hxg3 {[%emt 0:00:00]} Bf8 {[%emt 0:00:37]} 20. Qe3 {[%emt 0:09:30]} Qxe3 {[%emt 0:58:40]} 21. Rxe3 {[%emt 0:00:00]} Re6 {[%emt 0:00:00]} 22. Red3 {[%emt 0:00:00]} g6 {[%emt 0:00:00] Black is weak on the light squares} 23. f3 {[%emt 0:00:00]} f5 {[%emt 0:00:00]} 24. Kf2 {[%emt 0:00:00]} Rae8 {[%emt 0:00:00]} 25. exf5 {[%emt 0:00:00]} gxf5 {[%emt 0:00:00]} 26. R1d2 {[%emt 0:00:00]} d5 {[%emt 0:00:00] [#] aiming for ...Bc5+.} 27. Re2 $1 {[%emt 0:00:00]} Bc5+ {[%emt 0:00:00]} 28. Kf1 {[%emt 0:00:00]} Kf7 {[%emt 0:00:00]} 29. Rxe6 {[%emt 0:00:00]} Rxe6 {[%emt 0:00:00]} 30. Nd1 {[%emt 0:00:00]} Rh6 {[%emt 0:00:00] Black is more active.} 31. Nf2 {[%emt 0:00:00]} Bxf2 {[%emt 0:00:00]} 32. Kxf2 {[%emt 0:00:00]} Rh1 {[%emt 0:00:00]} 33. Rd2 {[%emt 0:00:00] Weighted Error Value: White=0.08 (flawless) /Black=0.06 (flawless) .  Inaccurate:     	White=3     	Black=1      OK:         	White=3     	Black=12     Best:        	White=1     	---        Strong:       	White=1     	---} 0-1

[Event "1000GM Spring Break Schev-E 2024"]
[Site "San Jose"]
[Date "2024.04.07"]
[Round "5.2"]
[White "Arenas, David"]
[Black "Liu, Patrick"]
[Result "1-0"]
[ECO "B44"]
[WhiteElo "2366"]
[BlackElo "2113"]
[Annotator "RC"]
[PlyCount "143"]
[EventDate "2024.03.28"]
[EventType "schev"]
[EventCountry "USA"]
[SourceTitle "playchess.com"]
[Source "ChessBase"]
[SourceQuality "1"]
[TimeControl "5400+30"]

1. e4 {[%emt 0:02:37]} c5 {[%emt 0:00:03]} 2. Nf3 {[%emt 0:00:05]} e6 {[%emt 0:00:03]} 3. d4 {[%emt 0:00:03]} cxd4 {[%emt 0:00:02]} 4. Nxd4 {[%emt 0:00:03]} Nc6 {[%emt 0:00:02]} 5. Nb5 {[%emt 0:00:06]} d6 {[%emt 0:01:30]} 6. c4 {[%emt 0:00:05]} a6 {[%emt 0:00:30]} 7. N5c3 {[%emt 0:00:07]} Nf6 {[%emt 0:00:35]} 8. Be2 {[%emt 0:00:09]} Be7 {[%emt 0:01:09]} 9. O-O {[%emt 0:00:10]} O-O {[%emt 0:02:03]} 10. Be3 {[%emt 0:00:40]} b6 {[%emt 0:02:40]} 11. Na3 {[%emt 0:00:25]} Bb7 {[%emt 0:01:09]} 12. f3 {[%emt 0:00:07]} Qc7 {[%emt 0:02:29]} 13. Rc1 {[%emt 0:00:35]} Rac8 {[%emt 0:04:48]} 14. Qd2 {[%emt 0:11:45]} Ba8 {[%emt 0:04:26]} 15. Rfd1 {[%emt 0:10:37]} Qb8 {[%emt 0:00:36]} 16. Bf1 {[%emt 0:01:02]} Rfd8 {[%emt 0:03:55]} 17. Qf2 {[%emt 0:00:13]} Nd7 {[%emt 0:00:12]} 18. Kh1 {[%emt 0:00:32]} h6 {[%emt 0:05:32]} 19. Rc2 {[%emt 0:05:52]} Nc5 {[%emt 0:04:05]} 20. Rcd2 {[%emt 0:01:13]} Bf6 {[%emt 0:03:18]} 21. Nab1 {[%emt 0:00:12]} Be5 {[%emt 0:09:08]} 22. a3 {[%emt 0:04:11]} a5 {[%emt 0:10:23]} 23. Nb5 {[%emt 0:01:25]} Rd7 {[%emt 0:07:32]} 24. N1c3 {[%emt 0:01:46]} Rcd8 {[%emt 0:00:32]} 25. f4 {[%emt 0:06:36]} Bf6 {[%emt 0:09:52]} 26. Be2 {[%emt 0:00:49]} Na7 {[%emt 0:01:55]} 27. Bxc5 {[%emt 0:06:01]} bxc5 {[%emt 0:07:34]} 28. e5 {[%emt 0:00:49]} Nxb5 {[%emt 0:01:00]} 29. Nxb5 {[%emt 0:00:14]} Be7 {[%emt 0:00:12]} 30. exd6 {[%emt 0:00:08]} Bxd6 {[%emt 0:00:22]} 31. Bf3 {[%emt 0:00:03]} Bxf3 {[%emt 0:03:10]} 32. Qxf3 {[%emt 0:00:08]} Qb6 {[%emt 0:04:15]} 33. Rd3 {[%emt 0:07:55]} g6 {[%emt 0:02:36]} 34. Qf2 {[%emt 0:04:51]} Kf8 {[%emt 0:01:18]} 35. Qh4 {[%emt 0:20:08]} Kg7 {[%emt 0:00:12]} 36. Qe1 {[%emt 0:00:34]} Kf8 {[%emt 0:02:16]} 37. Qh4 {[%emt 0:04:21]} Kg7 {[%emt 0:00:02]} 38. Qh3 {[%emt 0:00:05]} h5 {[%emt 0:01:08]} 39. Qf3 {[%emt 0:01:56]} Kf8 {[%emt 0:00:20]} 40. h3 {[%emt 0:01:19]} Ke8 {[%emt 0:00:54]} 41. f5 {[%emt 0:00:01]} exf5 {[%emt 0:01:49]} 42. Qd5 {[%emt 0:10:15]} Bf4 {[%emt 0:02:18]} 43. Qxd7+ {[%emt 0:00:37]} Rxd7 {[%emt 0:00:02]} 44. Rxd7 {[%emt 0:00:01]} Qe6 {[%emt 0:02:34]} 45. Rd8+ {[%emt 0:01:34]} Ke7 {[%emt 0:00:01]} 46. Nc3 {[%emt 0:00:08]} Bc7 {[%emt 0:00:55]} 47. Ra8 {[%emt 0:00:30]} Qe5 {[%emt 0:01:41]} 48. Nd5+ {[%emt 0:00:01]} Kd7 {[%emt 0:00:00]} 49. Nxc7+ {[%emt 0:01:11]} Kxc7 {[%emt 0:00:01]} 50. Rxa5 {[%emt 0:00:10]} Qe3 {[%emt 0:01:44]} 51. Ra7+ {[%emt 0:00:28]} Kc6 {[%emt 0:00:21]} 52. Rxf7 {[%emt 0:01:00]} Qe2 {[%emt 0:00:41]} 53. Rfd7 {[%emt 0:00:14]} Qxc4 {[%emt 0:00:08]} 54. R1d6+ {[%emt 0:00:07]} Kb5 {[%emt 0:00:01]} 55. Rb7+ {[%emt 0:00:13]} Ka5 {[%emt 0:00:01]} 56. Ra7+ {[%emt 0:00:07]} Kb5 {[%emt 0:00:07]} 57. a4+ {[%emt 0:00:06]} Qxa4 {[%emt 0:01:02]} 58. Rxa4 {[%emt 0:00:07]} Kxa4 {[%emt 0:00:04]} 59. Rxg6 {[%emt 0:00:02]} Kb3 {[%emt 0:00:10]} 60. Rg5 {[%emt 0:00:13]} Kxb2 {[%emt 0:00:06]} 61. Rxf5 {[%emt 0:00:03]} c4 {[%emt 0:00:11]} 62. Rxh5 {[%emt 0:00:01]} c3 {[%emt 0:00:07]} 63. Rb5+ {[%emt 0:00:04]} Kc1 {[%emt 0:00:05]} 64. h4 {[%emt 0:00:04]} c2 {[%emt 0:00:05]} 65. h5 {[%emt 0:00:02]} Kd1 {[%emt 0:00:05]} 66. Rd5+ {[%emt 0:00:05]} Ke2 {[%emt 0:00:06]} 67. Rc5 {[%emt 0:00:02]} Kd2 {[%emt 0:00:05]} 68. h6 {[%emt 0:00:03]} c1=N {[%emt 0:00:12]} 69. h7 {[%emt 0:00:06]} Nd3 {[%emt 0:00:04]} 70. Rd5 {[%emt 0:00:06]} Ke2 {[%emt 0:00:03]} 71. Rxd3 {[%emt 0:00:06]} Kxd3 {[%emt 0:00:04]} 72. h8=Q {[%emt 0:00:35]} 1-0

[Event "1000GM Spring Break Schev-E 2024"]
[Site "San Jose"]
[Date "2024.04.07"]
[Round "5.3"]
[White "Zuluaga Mancilla, Cesar"]
[Black "Deng, Henry"]
[Result "0-1"]
[ECO "D94"]
[WhiteElo "2206"]
[BlackElo "2305"]
[Annotator "RC"]
[PlyCount "90"]
[EventDate "2024.03.28"]
[EventType "schev"]
[EventCountry "USA"]
[SourceTitle "playchess.com"]
[Source "ChessBase"]
[SourceQuality "1"]
[TimeControl "5400+30"]

1. d4 {[%emt 0:11:39]} d5 {[%emt 0:00:30]} 2. Nf3 {[%emt 0:00:11]} Nf6 {[%emt 0:00:20]} 3. c4 {[%emt 0:00:22]} c6 {[%emt 0:00:15]} 4. Qc2 {[%emt 0:03:08]} g6 {[%emt 0:00:42]} 5. e3 {[%emt 0:06:43]} Bg7 {[%emt 0:00:42]} 6. Nc3 {[%emt 0:00:40]} O-O {[%emt 0:00:59]} 7. Be2 {[%emt 0:00:11]} dxc4 {[%emt 0:10:11]} 8. Bxc4 {[%emt 0:00:07]} c5 {[%emt 0:05:52]} 9. dxc5 {[%emt 0:20:43]} Qa5 {[%emt 0:02:33]} 10. O-O {[%emt 0:00:34]} Qxc5 {[%emt 0:01:15]} 11. Qe2 {[%emt 0:04:35]} Bg4 {[%emt 0:06:03]} 12. Bb3 {[%emt 0:00:43]} Nc6 {[%emt 0:01:19]} 13. h3 {[%emt 0:03:02]} Bxf3 {[%emt 0:09:51]} 14. Qxf3 {[%emt 0:00:18]} e6 {[%emt 0:00:35]} 15. Bd2 {[%emt 0:00:44]} Rfd8 {[%emt 0:00:54]} 16. Rfd1 {[%emt 0:00:09]} Qe7 {[%emt 0:08:50]} 17. Qe2 {[%emt 0:07:31]} Nd7 {[%emt 0:01:41]} 18. Na4 {[%emt 0:04:29]} a6 {[%emt 0:02:09]} 19. Rac1 {[%emt 0:00:29]} Rac8 {[%emt 0:00:52]} 20. Be1 {[%emt 0:06:11]} b5 {[%emt 0:01:17]} 21. Rxd7 {[%emt 0:02:57]} Qxd7 {[%emt 0:02:46]} 22. Nb6 {[%emt 0:00:10]} Qb7 {[%emt 0:00:45]} 23. Nxc8 {[%emt 0:00:21]} Rxc8 {[%emt 0:00:02]} 24. a4 {[%emt 0:04:11]} Bf8 {[%emt 0:03:17]} 25. axb5 {[%emt 0:00:26]} Nd4 {[%emt 0:01:34]} 26. exd4 {[%emt 0:01:06]} Rxc1 {[%emt 0:00:07]} 27. Qd2 {[%emt 0:00:40]} Bh6 {[%emt 0:00:56]} 28. Qxh6 {[%emt 0:04:07]} Rxe1+ {[%emt 0:00:06]} 29. Kh2 {[%emt 0:00:11]} Qxb5 {[%emt 0:00:08]} 30. Qd2 {[%emt 0:00:21]} Qb8+ {[%emt 0:00:31]} 31. g3 {[%emt 0:00:38]} Ra1 {[%emt 0:00:43]} 32. Qe3 {[%emt 0:01:16]} Qb6 {[%emt 0:01:01]} 33. Qc3 {[%emt 0:03:07]} Qb7 {[%emt 0:04:39]} 34. d5 {[%emt 0:01:08]} exd5 {[%emt 0:00:17]} 35. Qf3 {[%emt 0:07:05]} Ra5 {[%emt 0:00:45]} 36. Qe3 {[%emt 0:00:30]} Rb5 {[%emt 0:00:33]} 37. Ba4 {[%emt 0:00:46]} Rxb2 {[%emt 0:00:30]} 38. Qe8+ {[%emt 0:02:43]} Kg7 {[%emt 0:00:04]} 39. Qe5+ {[%emt 0:00:05]} f6 {[%emt 0:00:04]} 40. Qe3 {[%emt 0:00:18]} d4 {[%emt 0:00:29]} 41. Qxd4 {[%emt 0:01:02]} Rb4 {[%emt 0:00:16]} 42. Qd1 {[%emt 0:03:13]} Rb1 {[%emt 0:00:10]} 43. Qd7+ {[%emt 0:00:08]} Qxd7 {[%emt 0:00:03]} 44. Bxd7 {[%emt 0:00:05]} a5 {[%emt 0:00:30]} 45. Kg2 {[%emt 0:00:54]} Rb4 {[%emt 0:00:02]} 0-1